bitfinex/quotes_SOLUSD_20250204
["timestamp","ask_amount","ask_price","bid_price","bid_amount"]
[1738672489378,23.60251628,212.0,211.91,23.60251628]
[1738672489572,23.60251628,211.98,211.91,23.60251628]
[1738672490073,23.60251628,211.95,211.88,31.41471628]
[1738672490392,23.60251628,211.96,211.89,23.60251628]
[1738672490577,23.60251628,212.0,211.93,23.60251628]
[1738672491087,23.60251628,211.96,211.89,23.60251628]
[1738672491290,23.60251628,211.97,211.9,23.60251628]
[1738672491486,23.60251628,211.99,211.9,23.60251628]
[1738672492187,4.7174,211.98,211.9,23.60251628]
[1738672493277,23.60251628,211.91,211.84,23.60251628]
[1738672493592,23.60251628,211.93,211.84,23.60251628]
[1738672493898,23.60251628,211.93,211.8,6.265]
[1738672493899,4.7174,211.98,211.9,23.60251628]
[1738672494283,23.60251628,211.95,211.86,23.72800628]
[1738672494776,23.60251628,211.97,211.88,23.60251628]
[1738672495382,4.7178,211.96,211.88,23.60251628]
[1738672495579,23.60251628,212.02,211.94,23.60251628]
[1738672495977,23.60251628,212.0,211.92,23.60251628]
[1738672496181,23.60251628,211.98,211.9,31.89701628]
[1738672496575,10.01539572,212.07,211.9,31.89701628]
[1738672496576,14.67532137,212.02,211.93,0.12549]
[1738672496770,14.67532137,212.02,211.95,0.12549]
[1738672497181,14.67532137,211.99,211.92,0.12549]
[1738672497688,14.67532137,211.97,211.92,0.12549]
[1738672498703,23.48290884,211.98,211.92,0.12549]
[1738672498888,23.48290884,211.94,211.9,8.2945]
[1738672499086,23.48290884,211.92,211.85,31.27160884]
[1738672499291,23.48290884,211.92,211.85,7.7887]
[1738672499585,23.48290884,211.92,211.86,0.12549]
[1738672500798,23.48290884,211.92,211.86,0.25098]
[1738672501000,23.48290884,211.94,211.86,0.25098]
[1738672501191,23.48290884,211.94,211.86,4.97098]
[1738672501503,23.48290884,211.94,211.86,0.25098]
[1738672501699,23.48290884,211.96,211.9,0.12549]
[1738672501878,23.48290884,211.98,211.91,23.48290884]
[1738672502083,23.48290884,212.0,211.92,0.25098]
[1738672502588,23.48290884,212.0,211.92,0.12549]
[1738672502903,23.48290884,212.0,211.92,0.25098]
[1738672503098,23.48290884,211.96,211.89,23.48290884]
[1738672503301,23.48290884,211.96,211.87,23.48290884]
[1738672503902,23.48290884,211.88,211.8,1.5455]
[1738672504402,23.48290884,211.86,211.81,0.25098]
[1738672504579,23.48290884,211.88,211.81,23.60839884]
[1738672504783,23.48290884,211.88,211.8,1.5455]
[1738672505497,23.48290884,211.88,211.81,0.12549]
[1738672505797,23.48290884,211.88,211.8,1.5455]
[1738672505798,23.48290884,211.86,211.8,1.5455]
[1738672506703,23.48290884,211.88,211.82,0.12549]
[1738672506875,2.08816606,211.96,211.83,23.48290884]
[1738672506876,23.48290884,211.9,211.83,23.48290884]
[1738672507196,23.48290884,211.92,211.84,0.12549]
[1738672507501,23.48290884,211.92,211.84,0.25098]
[1738672507800,1.15843275,211.97,211.81,0.9999279]
[1738672507988,23.48290884,211.98,211.89,23.48290884]
[1738672508299,23.48290884,211.96,211.9,0.25098]
[1738672508781,23.48290884,211.98,211.9,1.84268]
[1738672509106,23.48290884,211.98,211.9,1.5917]
[1738672509283,23.48290884,211.98,211.91,0.12549]
[1738672509915,23.48290884,212.02,211.95,23.48290884]
[1738672510600,23.48290884,212.02,211.91,0.12549]
[1738672510601,23.48290884,212.0,211.91,23.48290884]
[1738672511180,13.41184853,211.99,211.91,23.48290884]
[1738672511505,23.48290884,211.98,211.9,1.5917]
[1738672512286,23.48290884,211.96,211.9,1.5917]
[1738672513484,23.48290884,212.02,211.93,23.48290884]
[1738672513686,23.48290884,212.0,211.91,23.48290884]
[1738672514415,23.48290884,212.0,211.92,0.50196]
[1738672514707,23.48290884,212.02,211.95,23.48290884]
[1738672514902,23.48290884,212.09,212.01,23.60839884]
[1738672515105,23.48290884,212.13,212.05,23.48290884]
[1738672515301,4.7439,212.14,211.97,25.48283674]
[1738672515302,0.03,212.14,212.07,23.48290884]
[1738672515605,0.03,212.14,212.07,25.07350884]
[1738672515986,23.48290884,212.13,212.07,1.5906]
[1738672516383,0.03,212.14,212.11,23.48290884]
[1738672516583,0.03,212.14,212.13,23.48290884]
[1738672516897,0.1,212.18,212.14,0.37647]
[1738672517087,0.1,212.18,212.17,23.48290884]
[1738672517695,0.1,212.18,212.17,23.73388884]
[1738672517906,30.9108475,212.28,212.19,0.12549]
[1738672517907,7.42793866,212.28,212.19,0.12549]
[1738672518108,23.48290884,212.26,212.18,23.48290884]
[1738672518292,7.42793866,212.28,212.17,7.8773]
[1738672518491,7.42793866,212.28,212.22,23.48290884]
[1738672519222,23.48290884,212.3,212.22,23.48290884]
[1738672519719,23.48290884,212.28,212.2,23.48290884]
[1738672520414,23.48290884,212.28,212.2,24.18953529]
[1738672520621,23.48290884,212.26,212.18,24.18952613]
[1738672520922,23.48290884,212.31,212.23,23.48290884]
[1738672521085,23.48290884,212.31,212.24,0.70643879]
[1738672521287,23.48290884,212.29,212.21,23.48290884]
[1738672521588,23.48290884,212.29,212.22,0.70656528]
[1738672522015,23.48290884,212.26,212.2,0.70657476]
[1738672522312,2.07340469,212.36,212.18,0.70662072]
[1738672522313,23.48290884,212.24,212.18,0.70662072]
[1738672522606,23.48290884,212.29,212.21,23.48290884]
[1738672522912,23.48290884,212.29,212.22,0.70653792]
[1738672523488,23.48290884,212.29,212.23,0.37647]
[1738672523808,23.48290884,212.31,212.24,0.70646105]
[1738672524195,36.76120884,212.41,212.26,0.25098]
[1738672524196,23.48290884,212.33,212.26,0.25098]
[1738672524504,23.48290884,212.35,212.28,6.5315]
[1738672524709,23.48290884,212.35,212.29,0.70634728]
[1738672525087,23.48290884,212.35,212.29,0.53734728]
[1738672525607,23.48290884,212.33,212.29,0.53734728]
[1738672525788,23.48290884,212.31,212.28,6.5315]
[1738672525993,23.48290884,212.29,212.23,6.96716486]
[1738672526216,23.48290884,212.31,212.24,1.15]
[1738672526513,23.48290884,212.31,212.25,0.68435285]
[1738672527415,23.48290884,212.29,212.25,0.68435285]
[1738672527622,23.48290884,212.27,212.24,1.15]
[1738672527908,1.16735595,212.4,212.23,6.2826]
[1738672527909,23.48290884,212.29,212.23,6.96747497]
[1738672528429,23.48290884,212.33,212.28,20.0]
[1738672528588,23.48290884,212.35,212.29,0.68410173]
[1738672528791,23.48290884,212.35,212.29,2.26040173]
[1738672529532,23.48290884,212.37,212.29,25.74331057]
[1738672530125,23.48290884,212.35,212.29,25.74331057]
[1738672530308,23.48290884,212.35,212.29,2.26040173]
[1738672531196,23.48290884,212.33,212.29,2.26040173]
[1738672531793,23.48290884,212.31,212.29,2.26040173]
[1738672531993,23.48290884,212.31,212.29,1.5763]
[1738672532397,23.51290884,212.31,212.29,1.5763]
[1738672532899,23.48290884,212.3,212.29,1.5763]
[1738672533216,23.48290884,212.3,212.27,0.68437235]
[1738672533413,23.48290884,212.3,212.24,0.25098]
[1738672533414,23.48290884,212.3,212.25,0.68441796]
[1738672534396,23.48290884,212.32,212.25,0.68441796]
[1738672534592,23.48290884,212.34,212.26,0.37647]
[1738672534815,23.48290884,212.36,212.28,23.73388884]
[1738672535122,23.48290884,212.36,212.3,0.25098]
[1738672535321,23.48290884,212.36,212.31,0.68381812]
[1738672536418,23.48290884,212.34,212.31,0.68381812]
[1738672536597,23.48290884,212.34,212.27,0.68422148]
[1738672536797,23.48290884,212.34,212.27,5.39512148]
[1738672537097,23.48290884,212.28,212.24,0.68408937]
[1738672537302,23.48290884,212.25,212.23,7.9002]
[1738672537511,23.48290884,212.24,212.23,1.6176]
[1738672537733,23.48290884,212.24,212.19,0.68489445]
[1738672538240,23.48290884,212.2,212.18,7.8155]
[1738672538531,23.48290884,212.27,212.19,1.06162114]
[1738672538696,23.48290884,212.27,212.21,0.25098]
[1738672538899,23.48290884,212.27,212.22,0.68459009]
[1738672539541,23.48290884,212.25,212.22,0.68459009]
[1738672539717,23.48290884,212.25,212.19,0.68491104]
[1738672540017,23.48290884,212.22,212.19,0.68491104]
[1738672540219,4.7105,212.29,212.18,7.8155]
[1738672540220,23.48290884,212.2,212.18,7.8155]
[1738672540518,4.7105,212.29,212.18,7.8155]
[1738672540519,23.48290884,212.22,212.18,7.8155]
[1738672541096,23.48290884,212.22,212.2,0.25098]
[1738672541495,23.48290884,212.22,212.18,8.50053868]
[1738672541711,23.48290884,212.22,212.19,0.37647]
[1738672542044,23.48290884,212.3,212.22,0.37647]
[1738672542201,23.48290884,212.3,212.24,0.37647]
[1738672542519,23.48290884,212.26,212.19,0.68455184]
[1738672542725,23.48290884,212.24,212.19,0.68455184]
[1738672542909,23.48290884,212.24,212.2,0.37647]
[1738672544201,13.65547421,212.36,212.2,0.37647]
[1738672544202,23.48290884,212.38,212.26,20.0]
[1738672544409,23.48290884,212.38,212.33,20.0]
[1738672544615,23.48290884,212.36,212.33,0.68382194]
[1738672545733,0.03,212.35,212.33,0.68382194]
[1738672546050,0.03,212.35,212.34,13.78831853]
[1738672546206,47.13248863,212.45,212.39,23.48290884]
[1738672546407,47.13248863,212.45,212.41,0.37647]
[1738672546704,47.13248863,212.45,212.43,0.37647]
[1738672546908,47.13248863,212.45,212.42,0.68321249]
[1738672547126,47.13248863,212.45,212.43,0.37647]
[1738672547917,47.13248863,212.45,212.42,0.68321249]
[1738672548115,47.13248863,212.45,212.4,0.6833122]
[1738672548315,47.13248863,212.45,212.41,0.37647]
[1738672549118,47.13248863,212.45,212.41,1.05975314]
[1738672549632,23.48290884,212.44,212.41,0.37647]
[1738672549822,23.48290884,212.42,212.39,0.68328186]
[1738672550133,23.48290884,212.42,212.38,20.6835379]
[1738672550313,47.13248863,212.45,212.42,0.12549]
[1738672550314,70.61539747,212.45,212.42,0.12549]
[1738672550515,23.48290884,212.43,212.38,0.6835379]
[1738672550927,23.48290884,212.43,212.39,0.37647]
[1738672551323,23.48290884,212.43,212.37,0.68341339]
[1738672551529,23.48290884,212.43,212.39,0.12549]
[1738672551933,23.48290884,212.41,212.33,0.68356904]
[1738672552132,23.48290884,212.39,212.33,0.68356904]
[1738672552325,47.13248863,212.45,212.38,23.48290884]
[1738672552532,47.13248863,212.45,212.44,43.73388884]
[1738672552732,47.13248863,212.45,212.44,59.04951737]
[1738672552955,47.13248863,212.45,212.44,59.73266676]
[1738672553527,46.75628863,212.45,212.44,59.73266676]
[1738672553731,46.75628863,212.45,212.44,64.43986676]
[1738672554627,20.00198863,212.45,212.44,64.43986676]
[1738672554822,20.00198863,212.45,212.44,65.64986676]
[1738672555132,23.48290884,212.55,212.44,65.64986676]
[1738672555133,23.48290884,212.57,212.44,108.41786676]
[1738672555339,23.48290884,212.57,212.51,0.50196]
[1738672555538,23.48290884,212.57,212.53,0.37647]
[1738672556023,23.48290884,212.59,212.56,0.12549]
[1738672556227,13.41184853,212.7,212.56,0.68212609]
[1738672556228,23.48290884,212.61,212.56,0.68212609]
[1738672556444,23.48290884,212.63,212.56,0.68212609]
[1738672556661,23.48290884,212.65,212.57,0.50196]
[1738672556837,23.48290884,212.65,212.6,0.12549]
[1738672557132,23.48290884,212.63,212.58,0.6816198]
[1738672557332,23.48290884,212.63,212.59,0.37647]
[1738672557539,23.48290884,212.61,212.56,0.68180139]
[1738672557833,23.48290884,212.61,212.57,0.50196]
[1738672558038,23.48290884,212.64,212.59,0.37647]
[1738672558255,23.48290884,212.64,212.6,0.68177387]
[1738672558957,23.48290884,212.64,212.59,0.93278886]
[1738672559450,23.48290884,212.62,212.57,0.68182018]
[1738672559652,23.48290884,212.59,212.49,7.29270129]
[1738672559842,23.48290884,212.55,212.5,0.12549]
[1738672560037,23.48290884,212.55,212.53,0.25098]
[1738672560239,23.48290884,212.55,212.51,0.68232932]
[1738672560557,23.48290884,212.53,212.46,0.68244198]
[1738672560757,23.48290884,212.51,212.47,0.50196]
[1738672561055,23.48290884,212.51,212.48,0.25098]
[1738672561350,23.48290884,212.53,212.48,0.25098]
[1738672561551,23.48290884,212.53,212.49,0.12549]
[1738672561737,23.48290884,212.57,212.52,0.25098]
[1738672561941,23.48290884,212.55,212.51,0.25098]
[1738672562134,23.48290884,212.55,212.49,0.25098]
[1738672562335,23.48290884,212.55,212.5,0.12549]
[1738672562639,23.48290884,212.57,212.51,0.25098]
[1738672563258,23.48290884,212.57,212.5,0.68261152]
[1738672563938,4.7045,212.56,212.5,0.68261152]
[1738672564134,23.48290884,212.57,212.51,0.25098]
[1738672564334,23.48290884,212.57,212.51,0.12549]
[1738672564536,23.48290884,212.53,212.45,24.16536544]
[1738672564745,23.48290884,212.51,212.45,0.6824566]
[1738672565141,23.48290884,212.49,212.44,6.6107]
[1738672565532,1.0,212.56,212.44,6.6107]
[1738672565736,23.48290884,212.49,212.44,6.6107]
[1738672566036,28.18910884,212.49,212.42,0.37647]
[1738672566246,23.48290884,212.47,212.42,0.37647]
[1738672566454,4.7062,212.49,212.39,6.5999]
[1738672566455,23.48290884,212.45,212.39,6.5999]
[1738672566639,23.48290884,212.47,212.39,30.08280884]
[1738672566840,23.48290884,212.49,212.41,23.48290884]
[1738672567044,23.48290884,212.55,212.48,0.12549]
[1738672567258,28.18720884,212.57,212.49,23.48290884]
[1738672567556,23.48290884,212.51,212.43,24.1656788]
[1738672568063,23.48290884,212.51,212.44,0.37647]
[1738672568236,23.48290884,212.49,212.44,0.25098]
[1738672568547,23.48290884,212.49,212.43,0.25098]
[1738672568746,23.48290884,212.49,212.41,24.16597754]
[1738672568950,23.48290884,212.47,212.39,30.08280884]
[1738672569259,23.48290884,212.47,212.39,30.76620404]
[1738672569640,23.48290884,212.47,212.4,0.37647]
[1738672569841,23.48290884,212.47,212.41,0.12549]
[1738672570158,23.48290884,212.55,212.49,0.25098]
[1738672570374,25.11250884,212.63,212.5,24.41636784]
[1738672570375,23.48290884,212.59,212.5,24.41636784]
[1738672570539,23.48290884,212.59,212.53,0.12549]
[1738672570854,23.48290884,212.59,212.53,0.68224434]
[1738672571068,23.48290884,212.59,212.5,23.60839884]
[1738672571366,23.48290884,212.57,212.5,0.68243827]
[1738672572159,23.48290884,212.55,212.48,0.6826052]
[1738672572337,23.48290884,212.55,212.4,11.7702]
[1738672572338,23.48290884,212.49,212.42,24.1657942]
[1738672572733,23.48290884,212.49,212.4,28.87400722]
[1738672572962,23.48290884,212.47,212.39,7.28310613]
[1738672573151,23.48290884,212.45,212.39,6.5999]
[1738672574648,6.0417,212.53,212.39,6.5999]
[1738672574649,23.48290884,212.49,212.42,23.48290884]
[1738672574852,23.48290884,212.53,212.44,23.48290884]
[1738672575048,23.48290884,212.47,212.39,6.5999]
[1738672575257,23.48290884,212.45,212.39,6.5999]
[1738672575649,16.466,212.56,212.37,0.68353252]
[1738672575650,0.88254758,212.51,212.46,6.004]
[1738672575858,23.48290884,212.61,212.51,0.25098]
[1738672576179,23.48290884,212.55,212.47,0.68245763]
[1738672576377,28.18720884,212.57,212.48,23.48290884]
[1738672576944,23.48290884,212.55,212.47,0.68245763]
[1738672577540,23.48290884,212.57,212.48,23.85937884]
[1738672577743,28.18740884,212.57,212.48,23.48290884]
[1738672578038,28.18740884,212.57,212.49,0.682872]
[1738672578244,28.18690884,212.59,212.5,23.73388884]
[1738672578438,23.48290884,212.57,212.48,23.48290884]
[1738672578660,23.48290884,212.57,212.48,24.16550301]
[1738672578879,23.48290884,212.55,212.47,0.68279497]
[1738672579678,3.704,212.59,212.42,13.41184853]
[1738672579679,23.48290884,212.51,212.43,0.68283211]
[1738672579880,23.48290884,212.53,212.44,23.85937884]
[1738672580041,23.48290884,212.53,212.44,23.73388884]
[1738672580243,23.48290884,212.51,212.42,23.48290884]
[1738672580453,23.48290884,212.55,212.46,23.48290884]
[1738672580657,28.18770884,212.55,212.47,0.68278912]
[1738672580866,28.18770884,212.55,212.48,0.25098]
[1738672581439,23.48290884,212.53,212.43,24.16568049]
[1738672581663,4.7048,212.55,212.43,24.16568049]
[1738672581664,28.18770884,212.55,212.45,23.48290884]
[1738672581847,28.18770884,212.55,212.43,24.1658536]
[1738672581848,23.48290884,212.51,212.43,24.1658536]
[1738672582250,23.48290884,212.51,212.43,23.48290884]
[1738672582450,4.7058,212.5,212.43,23.48290884]
[1738672582671,4.7056,212.52,212.45,23.48290884]
[1738672582986,23.48290884,212.51,212.43,23.48290884]
[1738672583682,23.48290884,212.49,212.41,24.16607337]
[1738672584258,23.48290884,212.49,212.41,23.48290884]
[1738672584459,4.7063,212.48,212.41,23.48290884]
[1738672584654,4.7063,212.48,212.37,0.80883394]
[1738672584655,1.0,212.4,212.33,0.68342209]
[1738672584893,23.48290884,212.33,212.27,0.11]
[1738672585061,23.48290884,212.29,212.22,0.063]
[1738672585586,23.48290884,212.29,212.22,23.54590884]
[1738672585897,23.48290884,212.39,212.28,23.48290884]
[1738672586076,23.48290884,212.41,212.34,0.37647]
[1738672586261,23.48290884,212.41,212.25,35.5]
[1738672586262,23.48290884,212.39,212.31,24.16664078]
[1738672586457,28.19120884,212.39,212.31,24.16664078]
[1738672586738,23.48290884,212.41,212.34,0.37647]
[1738672586983,23.48290884,212.43,212.35,24.16661041]
[1738672587284,23.48290884,212.39,212.31,29.65900884]
[1738672587465,23.48290884,212.39,212.29,24.16677368]
[1738672587664,23.48290884,212.41,212.35,0.12549]
[1738672587895,23.48290884,212.39,212.34,0.25098]
[1738672588186,23.48290884,212.39,212.31,23.48290884]
[1738672588571,12.7684,212.44,212.32,0.25098]
[1738672588572,23.48290884,212.37,212.32,0.25098]
[1738672588973,4.7085,212.38,212.31,0.37647]
[1738672589572,23.48290884,212.35,212.3,0.68377292]
[1738672589770,23.48290884,212.33,212.24,24.16717023]
[1738672589985,4.7085,212.38,212.22,23.54590884]
[1738672589986,23.48290884,212.31,212.22,23.54590884]
[1738672590169,23.48290884,212.29,212.22,0.063]
[1738672590370,23.48290884,212.29,212.24,0.12549]
[1738672590581,28.19350884,212.29,212.22,23.54590884]
[1738672590972,23.48290884,212.27,212.22,0.063]
[1738672591189,23.48290884,212.25,212.22,0.063]
[1738672591368,23.48290884,212.23,212.22,0.063]
[1738672592106,23.48290884,212.25,212.22,0.063]
[1738672592684,23.48290884,212.23,212.22,0.063]
[1738672593165,23.48290884,212.25,212.22,0.063]
[1738672593887,28.19430884,212.25,212.22,0.063]
[1738672594082,23.48290884,212.23,212.22,0.063]
[1738672595487,28.19400884,212.27,212.22,0.063]
[1738672595967,23.48290884,212.27,212.22,0.063]
[1738672596163,28.19390884,212.27,212.22,0.063]
[1738672596381,23.48290884,212.29,212.22,0.063]
[1738672596583,23.48290884,212.29,212.23,0.25098]
[1738672597092,1.5219,212.34,212.22,24.2307536]
[1738672597093,23.48290884,212.25,212.22,0.74785049]
[1738672597308,23.48290884,212.25,212.22,0.063]
[1738672597472,23.48290884,212.29,212.22,0.063]
[1738672597794,23.48290884,212.31,212.23,23.73388884]
[1738672598026,23.48290884,212.31,212.24,0.68466464]
[1738672598291,23.48290884,212.35,212.25,23.48290884]
[1738672598495,23.48290884,212.35,212.26,0.68457584]
[1738672598872,28.19160884,212.37,212.3,0.25098]
[1738672599517,23.48290884,212.33,212.26,0.37647]
[1738672599815,23.48290884,212.33,212.26,0.9354811]
[1738672600173,28.19260884,212.33,212.26,0.9354811]
[1738672600876,23.48290884,212.31,212.26,0.25098]
[1738672601098,28.19260884,212.33,212.26,0.25098]
[1738672601595,28.19260884,212.33,212.24,6.4575]
[1738672601805,23.48290884,212.31,212.24,6.4575]
[1738672602017,23.48290884,212.29,212.24,6.4575]
[1738672602189,28.19350884,212.29,212.24,6.4575]
[1738672602880,23.48290884,212.31,212.25,0.25098]
[1738672603113,23.48290884,212.35,212.27,23.48290884]
[1738672603284,23.48290884,212.33,212.25,24.16748045]
[1738672603686,23.48290884,212.33,212.26,0.25098]
[1738672604106,23.48290884,212.31,212.24,7.14212652]
[1738672604604,28.19310884,212.31,212.24,7.14212652]
[1738672604901,23.48290884,212.29,212.22,0.063]
[1738672605103,23.48290884,212.27,212.22,0.063]
[1738672606304,23.48290884,212.29,212.22,0.063]
[1738672606878,11.7752,212.31,212.22,0.063]
[1738672606879,23.48290884,212.27,212.22,0.063]
[1738672607079,23.48290884,212.25,212.22,0.063]
[1738672607517,29.2578,212.33,212.22,0.063]
[1738672607518,23.48290884,212.29,212.22,0.31398]
[1738672607806,23.48290884,212.31,212.23,24.16770217]
[1738672607982,23.48290884,212.25,212.22,0.063]
[1738672608183,23.48290884,212.24,212.18,6.069]
[1738672608390,4.7125,212.2,212.18,0.063]
[1738672609334,23.48290884,212.19,212.18,0.063]
[1738672610006,28.19540884,212.2,212.18,0.063]
[1738672611240,23.48290884,212.19,212.18,0.063]
[1738672611919,1.0,212.21,212.18,0.063]
[1738672611920,23.48290884,212.21,212.18,0.063]
[1738672612719,28.19480884,212.23,212.18,0.063]
[1738672614731,23.48290884,212.2,212.18,0.063]
[1738672615606,23.48290884,212.22,212.18,0.063]
[1738672615811,28.19450884,212.25,212.18,0.31398]
[1738672616103,23.48290884,212.23,212.18,0.063]
[1738672616304,23.48290884,212.21,212.18,0.063]
[1738672617507,17.4901,212.25,212.18,0.063]
[1738672617508,23.48290884,212.23,212.18,0.063]
[1738672618936,23.48290884,212.21,212.18,0.063]
[1738672619121,23.48290884,212.19,212.18,0.063]
[1738672619633,28.19560884,212.19,212.18,0.063]
[1738672621349,28.19560884,212.19,212.18,0.0001]
[1738672623137,2.20291778,212.21,212.18,0.0001]
[1738672623138,23.48290884,212.21,212.18,0.0001]
[1738672623312,28.19520884,212.21,212.18,0.0001]
[1738672623712,23.48290884,212.19,212.18,0.0001]
[1738672624518,4.7123,212.21,212.18,0.0001]
[1738672624519,28.19520884,212.21,212.18,0.0001]
[1738672625422,23.48290884,212.19,212.18,0.0001]
[1738672626052,23.48290884,212.23,212.18,0.0001]
[1738672626214,28.19450884,212.25,212.18,6.1065]
[1738672626608,23.48290884,212.23,212.18,6.1065]
[1738672627114,23.48290884,212.23,212.18,6.79205568]
[1738672627354,23.48290884,212.25,212.19,0.37647]
[1738672627547,23.48290884,212.25,212.19,1.5162]
[1738672627841,28.19430884,212.25,212.19,1.5162]
[1738672628528,0.03,212.27,212.23,0.37647]
[1738672628729,0.03,212.27,212.26,23.85937884]
[1738672628932,0.03,212.27,212.26,24.54382231]
[1738672629139,0.03,212.27,212.26,23.48290884]
[1738672629336,0.03,212.27,212.24,24.1675301]
[1738672629648,0.03,212.27,212.25,0.25098]
[1738672629956,0.03,212.27,212.26,0.93572487]
[1738672630129,0.03,212.27,212.25,0.68474487]
[1738672630337,0.03,212.27,212.24,24.167644]
[1738672631015,0.03,212.27,212.22,23.48290884]
[1738672631217,23.48290884,212.25,212.19,1.5162]
[1738672631438,23.48290884,212.23,212.19,1.5162]
[1738672631613,23.48290884,212.21,212.18,6.1065]
[1738672632454,23.48290884,212.19,212.18,0.0001]
[1738672632916,23.48290884,212.21,212.18,0.0001]
[1738672633116,23.48290884,212.19,212.18,0.0001]
[1738672633514,28.19560884,212.19,212.18,0.0001]
[1738672634422,23.48290884,212.23,212.18,0.0001]
[1738672634630,23.48290884,212.25,212.18,0.0001]
[1738672635353,23.48290884,212.23,212.18,0.0001]
[1738672635654,4.712,212.22,212.18,0.0001]
[1738672636154,23.48290884,212.19,212.18,0.0001]
[1738672636321,23.48290884,212.21,212.18,0.0001]
[1738672636521,23.48290884,212.19,212.18,0.0001]
[1738672637336,4.712,212.22,212.18,0.0001]
[1738672638437,23.48290884,212.21,212.18,0.0001]
[1738672638643,4.712,212.22,212.18,0.0001]
[1738672638849,23.48290884,212.21,212.18,0.0001]
[1738672639225,23.48290884,212.19,212.18,0.0001]
[1738672639719,28.19560884,212.19,212.17,0.0001]
[1738672640148,28.19560884,212.19,212.09,0.25098]
[1738672640332,23.48290884,212.16,212.09,0.25098]
[1738672640658,23.48290884,212.12,212.07,0.063]
[1738672641367,23.48290884,212.14,212.07,0.063]
[1738672641532,43.48290884,212.16,212.07,0.18849]
[1738672641719,23.48290884,212.14,212.07,0.18849]
[1738672642048,23.48290884,212.12,212.07,0.063]
[1738672643745,4.7145,212.11,212.07,0.063]
[1738672644123,4.7143,212.12,212.07,0.31398]
[1738672644332,28.19680884,212.14,212.07,0.31398]
[1738672644729,28.19680884,212.14,212.07,0.18849]
[1738672644961,23.48290884,212.12,212.07,0.18849]
[1738672645127,23.48290884,212.12,212.07,0.063]
[1738672645524,23.48290884,212.1,212.07,0.063]
[1738672645831,23.48290884,212.08,212.07,0.063]
[1738672646359,20.0,212.12,212.07,0.063]
[1738672646664,23.48290884,212.12,212.07,0.063]
[1738672647192,28.19600884,212.18,212.1,23.48290884]
[1738672647363,28.19600884,212.18,212.11,0.25098]
[1738672647758,23.48290884,212.16,212.11,0.25098]
[1738672647972,23.48290884,212.16,212.1,0.68591519]
[1738672648193,23.48290884,212.16,212.08,30.64438393]
[1738672649094,23.48290884,212.12,212.08,6.35]
[1738672649286,23.48290884,212.12,212.07,0.063]
[1738672649483,23.48290884,212.1,212.07,0.063]
[1738672649887,4.7149,212.09,212.07,0.063]
[1738672651063,23.48290884,212.14,212.08,23.73388884]
[1738672651262,23.48290884,212.14,212.07,0.063]
[1738672651500,23.48290884,212.12,212.07,0.063]
[1738672652770,23.48290884,212.1,212.07,0.063]
[1738672654910,23.48290884,212.14,212.07,0.063]
[1738672655303,23.48290884,212.12,212.07,0.063]
[1738672655472,23.48290884,212.1,212.07,0.063]
[1738672655892,23.48290884,212.12,212.07,0.063]
[1738672657287,23.48290884,212.1,212.07,0.063]
[1738672657485,23.48290884,212.12,212.07,0.063]
[1738672658092,23.48290884,212.14,212.07,0.063]
[1738672658903,23.48290884,212.13,212.07,0.063]
[1738672659402,23.48290884,212.11,212.07,0.063]
[1738672659898,23.48290884,212.09,212.07,0.063]
[1738672660794,23.48290884,212.11,212.07,0.063]
[1738672661697,20.0,212.06,212.0,0.063]
[1738672661905,23.48290884,212.01,211.9,6.022]
[1738672662100,23.48290884,211.92,211.9,6.022]
[1738672662318,23.48290884,211.92,211.88,1.6021]
[1738672662484,23.48290884,211.89,211.86,3.99618988]
[1738672662680,23.48290884,211.87,211.86,3.99618988]
[1738672663994,23.48290884,211.87,211.86,1e-08]
[1738672664305,20.0,211.85,211.84,6.57079949]
[1738672664602,43.48290884,211.85,211.82,0.063]
[1738672664806,23.48290884,211.83,211.82,0.063]
[1738672665192,23.48290884,211.87,211.82,0.063]
[1738672666207,23.48290884,211.85,211.82,0.063]
[1738672668209,1.16192738,211.91,211.82,0.063]
[1738672668210,23.48290884,211.91,211.84,0.25098]
[1738672668519,24.63846885,211.95,211.89,23.48290884]
[1738672668691,23.48290884,211.93,211.86,6.5121]
[1738672668893,23.48290884,211.93,211.87,0.12549]
[1738672669203,23.48290884,211.93,211.86,6.13759]
[1738672669824,23.48290884,211.88,211.82,0.063]
[1738672669994,23.48290884,211.9,211.82,0.063]
[1738672670182,23.48290884,211.9,211.83,23.48290884]